Workbook

Sheet Sheet1
A1: 2013-01-11
A2: sn 3048
B4: load cell calibration
B6: Load Cell
B7: mass Pb | C7: cnts
B8: 100 | C8: 100.1
B9: 200 | C9: 200.1
B11: Load Cell Gain
B12: =(C9-C8)/(B9-B8) -> 1 | C12: cnts/gram
B14: Mass SOLO in air (g) | C14: 77110 | D14: =CONVERT(C14,"g","lbm") -> 169.9984504
B15: added weights | C15: 2219.5
C16: =C14+C15 -> 79329.5
B18: Tank H20 Salinity (psu) | C18: 32.7
B20: Data
B21: P(psi) | C21: P(dBar) | D21: Temp(degC) | E21: Cnts | F21: H20 Density | G21: SOLOII Vol | H21: Mass
B22: 0 | C22: 10 | D22: 18.27 | E22: 0 | F22: =1/Spec_Vol($C$18,D22,C22) -> 1.023490583 | G22: =( $C$16 - (E22/$B$12)-20 )/F22 -> 77489.23278 | H22: end
B23: 29.4 | C23: =B23*0.6895 -> 20.2713 | D23: 18.27 | E23: 110 | F23: =1/Spec_Vol($C$18,D23,C23) -> 1.023535806 | G23: =( $C$16 - (E23/$B$12)-20 )/F23 -> 77378.33842
B24: 0 | C24: =B24*0.6895 -> 0 | D24: 18.27 | E24: 0 | F24: 1.023446544 | G24: =( $C$16 - (E24/$B$12) )/F24 -> 77512.10892
B25: 29.4 | C25: =B25*0.6895 -> 20.2713 | D25: 18.27 | E25: 110 | F25: 1.023535806 | G25: 77397.87852
B26: 0 | C26: 0 | D26: 18.27 | E26: 0 | F26: 1.023446544 | G26: 77512.10892 | H26: =E26/B$12+buoy($C$18,D26,C26,E$40,E$41,$G$34) -> 79321.2061 | I26: =E26/B$12+buoy($C$18,D26,C26,E$40,E$41,$L$34) -> 79297.79605
B27: 49.4 | C27: =B27*0.6895 -> 34.0613 | D27: 18.27 | E27: 110 | F27: 1.023596508 | G27: 77393.28868 | H27: 79436.88345 | I27: 79413.47172
B28: 0 | C28: =B28*0.6895 -> 0 | D28: 18.27 | E28: 0 | F28: 1.023446544 | G28: 77512.10892 | H28: =E28/B$12+buoy($C$18,D28,C28,E$40,E$41,$G$34) -> 79321.2061 | I28: =E28/B$12+buoy($C$18,D28,C28,E$40,E$41,$L$34) -> 79297.79605
D32: Compressibility Calculations | F32: Volume from linear fit | K32: Volume using 0 pressure weight at end
F33: slope (cc/db) | G33: =SLOPE($G26:$G28,$C26:$C28) -> -3.488423582 | I33: =G33-0.005 -> -3.493423582 | K33: slope (cc/db) | L33: =SLOPE($G26:$G28,$C26:$C28) -> -3.488423582
F34: v0 (from intercept) | G34: =INTERCEPT(G26:G28,C26:C28) -> 77512.10892 | K34: v0 (from last weight) | L34: =G22 -> 77489.23278
F35: compressibillity | H35: =G33/G34 -> -4.500488544e-05 | I35: =I33/G34 -> -4.506939149e-05 | K35: compressibillity | M35: =L33/L34 -> -4.501817165e-05
C37: Depth | D37: Temp | E37: Salinity | F37: Mass | G37: in water wt.
B38: target | C38: 200 | D38: 8.48 | E38: 34.05 | F38: =buoy(E38,D38,C38,E$40,E$41,G34) -> 79523.68594 | I38: =buoy(E38,D38,C38,E$40,E$41,L34) -> 79500.21613
B39: weight to add | F39: =F38-H28+C15 -> 2421.979843 | G39: =F39*1.1 -> 2664.177827 | I39: =I38-I28+C15 -> 2421.920085
D40: alpha= | E40: 2.2e-06
D41: beta= | E41: 8.5e-05
B43: Sensitivity
C44: =C38-100 -> 100 | D44: =D38 -> 8.48 | E44: =E38 -> 34.05 | F44: =buoy(E44,D44,C44,E$40,E$41,G$34) -> 79505.99712 | H44: =(F$38-F44)/((C$38-C44)/100) -> 17.68882278 | I44: g/100db
C45: =C38 -> 200 | D45: =D38+1 -> 9.48 | E45: =E38 -> 34.05 | F45: =buoy(E45,D45,C45,E$40,E$41,G$34) -> 79517.86781 | H45: =(F$38-F45)/(D$38-D45) -> -5.818128693 | I45: g/degree
C46: =C38 -> 200 | D46: =D38 -> 8.48 | E46: =E38-1 -> 33.05 | F46: =buoy(E46,D46,C46,E$40,E$41,G$34) -> 79463.10779 | H46: =F$38-F46/(E38-E46) -> 60.57815215 | I46: g/psu
C47: =C38 -> 200 | D47: =D38 -> 8.48 | E47: =E38 -> 34.05 | F47: =buoy(E47,D47,C47,E$40*1.1,E$41,G$34) -> 79520.18208 | H47: =F$38-F47 -> 3.503865954 | I47: g/10%alpha
B50: surface | C50: 0 | D50: 11.2 | E50: 32.85 | F50: =buoy(E50,D50,C50,E$40,E$41,G34) -> 79399.01183 | I50: =buoy(E50,D50,C50,E$40,E$41,L34) -> 79375.57881
B51: weight to add | F51: =F38-F50 -> 124.6741139 | G51: =210-F51 -> 85.32588607 | I51: =(C38-C50)/100*H44+(D38-D50)*H45+(E38-E50)*H46 -> 123.8967382 | J51: =210-I51 -> 86.10326181

Sheet Sheet2

Sheet Sheet3
